Workbook

Sheet Doubler
B1: Author: | C1: R. Abbott | F1: Total Report Pages: | G1: =X1 -> 3 | M1: Page | N1: Title | O1: Sub | P1: Sub | Q1: Sub | R1: Fig | S1: Table | T1: Running Counts | W1: Total Sheet Pages: | X1: =SUM(M:M) -> 3
B2: Check: | C2: J. Singh | F2: Report: | G2: AA-SM-291 | M2: No | N2: No | O2: Title | P2: Title | Q2: Title | R2: No | S2: No | W2: Total Title No: | X2: =SUM(N:N) -> 0
B3: Date: | C3: 20/10/2013 | F3: Revision: | G3: IR | W3: Total Sub No: | X3: =SUM(O:O) -> 0
B4: Section Number: | F4: Sheet Name | G4: SPLICE LOAD DISTRIBUTION | W4: Total Sub No: | X4: =SUM(P:P) -> 0
B5: Report Title: | C5: STANDARD SPREADSHEET METHOD | W5: Total Sub No: | X5: =SUM(Q:Q) -> 0
B6: Section: | W6: Total Fig No: | X6: =SUM(R:R) -> 0
W7: Total Table No: | X7: =SUM(S:S) -> 0
E8: Author: | F8: =$C$1 -> R. Abbott | I8: Document Number: | J8: =$G$2 -> AA-SM-291
E9: Check: | F9: =$C$2 -> J. Singh | I9: Revision Level : | J9: =$G$3 -> IR | M9: 1
E10: Date: | F10: =$C$3 -> 20/10/2013 | I10: Page: | J10: =L10&" of "&$G$1 -> 1 of 3 | L10: =SUM($M$1:M9) -> 1
E11: Title: | F11: =$C$5 -> STANDARD SPREADSHEET METHOD
B13: =$G$4 -> SPLICE LOAD DISTRIBUTION
B14: Joint Load Distribution: Ref AFFDL-TR-67-184 Analytical Design Methods for Aircraft Structural Joints
B15: Fastener Stiffness: Ref Huth, On the influence of Rivet Piability of Multi-Row Rivet Connections on Load Transfer
B20: Notes:
A21: ● | B21: All input values are in Blue, other values should not be ovewritten
A22: ● | B22: This spreadsheets used visual basic code to automatically trigger a specific 'goal-seek' solution to enable the bolt group calculation to converge.
A24: ● | B24: The visual basic code depends on absolute cell references so do not move any cells or insert any rows or columns
A26: ● | B26: Thickness are defined at each fastener position. The thickness between fasteners in the skin and the Splice are the calculated average of those defined at the fastener positions.
A28: ● | B28: Fastener stiffness values are automatically calculated using the Huth method, these values can be overwitten in cells F104 to F117
A30: ● | B30: In the original method the axial stiffness is based on the net area of the plate and Splice, this is judged to be incorrect as the length of the skin and Splice between the fastener does noe see the effect of the fastener hole. In this method the gross area of the skin and Splice are considered in the calcualtion of the axial stiffness of the plate and Splice.
A34: ● | B34: This method is set up for up to 14 fasteners. To analyse a situation with less than 14 fasteners the following approach should be taken
C36: For a joint with 13 fastneners set the diameter of fastener no. 14 to zero
C37: For a joitn with 12 fasteners set the diameters of fasteners no. 13 and 14 to zero
C38: etc. | BC38: Skin | BE38: Splice
BC39: x | BD39: z | BE39: x | BF39: z
B40: Axial Load carried by the skin | BB40: End to Fastener 1
B41: Q = | C41: 3250 | D41: lb | BC41: 0 | BD41: =BD47 -> 0 | BE41: =BE43/2 -> 2 | BF41: 0
BC42: =BC41 -> 0 | BD42: =BD48 -> -0.06 | BE42: =BE41 -> 2 | BF42: =BF48 -> 0.02
B43: Material Stiffness Properties | BC43: =Y136 -> 4 | BD43: =BD49 -> -0.06 | BE43: =BC43 -> 4 | BF43: =BF42 -> 0.02
B44: Aluminum | C44: 10700000 | D44: psi | BC44: =BC43 -> 4 | BD44: 0 | BE44: =BC44 -> 4 | BF44: =BF41 -> 0
B45: Steel | C45: 29000000 | D45: psi | BC45: =BC41 -> 0 | BD45: =BD51 -> 0 | BE45: =BE41 -> 2 | BF45: =BF41 -> 0
B46: Titanium | C46: 16000000 | D46: psi | BB46: Fastener 1 to Fastener 2
B47: Monel | C47: 26000000 | D47: psi | BC47: =BC44 -> 4 | BD47: 0 | BE47: =BC47 -> 4 | BF47: 0 | BJ47: Fastener 1 | BK47: =IF(B104=0,0,1) -> 1 | BL47: =BE48 -> 4 | BM47: =MIN(BD48,BD42) -> -0.06
BC48: =BC47 -> 4 | BD48: =-W137 -> -0.06 | BE48: =BC48 -> 4 | BF48: =X137 -> 0.02 | BL48: =BL47 -> 4 | BM48: =MAX(BF48,BF42) -> 0.02
B49: Material Selection for Individual Components | H49: Select Material Below: | BC49: =Y137 -> 5.5 | BD49: =BD48 -> -0.06 | BE49: 5.5 | BF49: =BF48 -> 0.02
B50: Es = | C50: =INDEX($C$44:$C$47,MATCH(I50,$B$44:$B$47,0)) -> 10700000 | D50: psi, Young's modulus of Skin | H50: Skin: | I50: Aluminum | BC50: =BC49 -> 5.5 | BD50: =0 -> 0 | BE50: 5.5 | BF50: =BF47 -> 0
B51: Ed = | C51: =INDEX($C$44:$C$47,MATCH(I51,$B$44:$B$47,0)) -> 29000000 | D51: psi, Young's Modulus of Splice | H51: Splice: | I51: Steel | BC51: =BC47 -> 4 | BD51: =BD47 -> 0 | BE51: 4 | BF51: =BF47 -> 0
B52: Ef = | C52: =INDEX($C$44:$C$47,MATCH(I52,$B$44:$B$47,0)) -> 16000000 | D52: psi, Young's Modulus of Fastener | H52: Fastener: | I52: Titanium | BB52: Fastener 2 to Fastener 3
BC53: =BC49 -> 5.5 | BD53: 0 | BE53: =BC53 -> 5.5 | BF53: 0 | BJ53: Fastener 2 | BK53: =IF(B105=0,0,1) -> 1 | BL53: =BE54 -> 5.5 | BM53: =MIN(BD54,BD48) -> -0.06
B54: Input Data for Huth Fastener Stiffness Calculation | H54: Select Type of Joint Below: | BC54: =BC53 -> 5.5 | BD54: =-W139 -> -0.06 | BE54: =BC54 -> 5.5 | BF54: =X139 -> 0.025 | BL54: =BL53 -> 5.5 | BM54: =MAX(BF54,BF48)*BK53 -> 0.025
B55: Group | C55: Type | E55: a | F55: b | H55: Group: | I55: II | BC55: =Y139 -> 7 | BD55: =BD54 -> -0.06 | BE55: 7 | BF55: =BF54 -> 0.025
B56: I | C56: Bolted Metallic | E56: 0.6666666667 | F56: 3 | BC56: =BC55 -> 7 | BD56: =0 -> 0 | BE56: 7 | BF56: =BF53 -> 0
B57: II | C57: Riveted Metallic | E57: 0.4 | F57: 2.2 | BC57: =BC53 -> 5.5 | BD57: =BD53 -> 0 | BE57: 5.5 | BF57: =BF53 -> 0
BB58: Fastener 3 to Fastener 4
B59: a = | C59: =IF(I55="I",E56,IF(I55="II",E57,IF(I55="III",#REF!,"Error"))) -> 0.4 | BC59: =BC55 -> 7 | BD59: 0 | BE59: =BC59 -> 7 | BF59: 0 | BJ59: Fastener 3 | BK59: =IF(B106=0,0,1) -> 1 | BL59: =BE60 -> 7 | BM59: =MIN(BD60,BD54) -> -0.06
B60: b = | C60: =IF(I55="I",F56,IF(I55="II",F57,IF(I55="III",#REF!,"Error"))) -> 2.2 | BC60: =BC59 -> 7 | BD60: =-W141 -> -0.06 | BE60: =BC60 -> 7 | BF60: =X141 -> 0.03 | BL60: =BL59 -> 7 | BM60: =MAX(BF60,BF54)*BK59 -> 0.03
BC61: =Y141 -> 8.5 | BD61: =BD60 -> -0.06 | BE61: 8.5 | BF61: =BF60 -> 0.03
A62: 0 | BC62: =BC61 -> 8.5 | BD62: =0 -> 0 | BE62: 8.5 | BF62: =BF59 -> 0
BC63: =BC59 -> 7 | BD63: =BD59 -> 0 | BE63: 7 | BF63: =BF59 -> 0
E64: Author: | F64: =$C$1 -> R. Abbott | I64: Document Number: | J64: =$G$2 -> AA-SM-291 | BB64: Fastener 4 to Fastener 5
E65: Check: | F65: =$C$2 -> J. Singh | I65: Revision Level : | J65: =$G$3 -> IR | M65: 1 | BC65: =BC61 -> 8.5 | BD65: 0 | BE65: =BC65 -> 8.5 | BF65: 0 | BJ65: Fastener 4 | BK65: =IF(B107=0,0,1) -> 1 | BL65: =BE66 -> 8.5 | BM65: =MIN(BD66,BD60) -> -0.06
E66: Date: | F66: =$C$3 -> 20/10/2013 | I66: Page: | J66: =L66&" of "&$G$1 -> 2 of 3 | L66: =SUM($M$1:M65) -> 2 | BC66: =BC65 -> 8.5 | BD66: =-W143 -> -0.06 | BE66: =BC66 -> 8.5 | BF66: =X143 -> 0.035 | BL66: =BL65 -> 8.5 | BM66: =MAX(BF66,BF60)*BK65 -> 0.035
E67: Title: | F67: =$C$5 -> STANDARD SPREADSHEET METHOD | BC67: =Y143 -> 10 | BD67: =BD66 -> -0.06 | BE67: 10 | BF67: =BF66 -> 0.035
BC68: =BC67 -> 10 | BD68: =0 -> 0 | BE68: 10 | BF68: =BF65 -> 0
B69: =$G$4 -> SPLICE LOAD DISTRIBUTION | BC69: =BC65 -> 8.5 | BD69: =BD65 -> 0 | BE69: 8.5 | BF69: =BF65 -> 0
B70: Joint Load Distribution: Ref AFFDL-TR-67-184 Analytical Design Methods for Aircraft Structural Joints | BB70: Fastener 5 to Fastener 6
B71: Fastener Stiffness: Ref Huth, On the influence of Rivet Pliability of Multi-Row Rivet Connections on Load Transfer | AO71: n = | AP71: =IF(AG70="Single Shear",1,IF(AG70="Double Shear",2,"Error")) -> Error | AR71: n = 1 For Single-Shear; n = 2 For Double-Shear Joints | BC71: =BC67 -> 10 | BD71: 0 | BE71: =BC71 -> 10 | BF71: 0 | BJ71: Fastener 5 | BK71: =IF(B108=0,0,1) -> 1 | BL71: =BE72 -> 10 | BM71: =MIN(BD72,BD66) -> -0.06
BC72: =BC71 -> 10 | BD72: =-W145 -> -0.06 | BE72: =BC72 -> 10 | BF72: =X145 -> 0.04 | BL72: =BL71 -> 10 | BM72: =MAX(BF72,BF66)*BK71 -> 0.04
BC73: =Y145 -> 11.5 | BD73: =BD72 -> -0.06 | BE73: 11.5 | BF73: =BF72 -> 0.04
BC74: =BC73 -> 11.5 | BD74: =0 -> 0 | BE74: 11.5 | BF74: =BF71 -> 0
B75: In the tables below input the blue value: Fastener pitch, skin and Splice widths, fastener diameter, skin and Splice thicknesses | AO75: C = | AP75: =1/((1/(D104*$C$51) + 1/(C104*$C$50) + 1/(2*D104*$C$52) + 1/(2*C104*$C$52))*(C60)*((D104+C104)/(2*B104))^C59) -> 158007.1157 | AQ75: in/lbf | AR75: Bolt Flexibility Constant | BC75: =BC71 -> 10 | BD75: =BD71 -> 0 | BE75: 10 | BF75: =BF71 -> 0
BB76: Fastener 6 to Fastener 7
AO77: Kf = | AP77: =1/AP75 -> 6.3288289e-06 | AQ77: lbf/in | AR77: Bolt Spring Constant, Kf = 1/C | BC77: =BC73 -> 11.5 | BD77: 0 | BE77: =BC77 -> 11.5 | BF77: 0 | BJ77: Fastener 6 | BK77: =IF(B109=0,0,1) -> 1 | BL77: =BE78 -> 11.5 | BM77: =MIN(BD78,BD72) -> -0.06
BC78: =BC77 -> 11.5 | BD78: =-W147 -> -0.06 | BE78: =BC78 -> 11.5 | BF78: =X147 -> 0.04 | BL78: =BL77 -> 11.5 | BM78: =MAX(BF78,BF72)*BK77 -> 0.04
X79: 1 | Y79: 2 | Z79: 3 | AA79: 4 | AB79: 5 | AC79: 6 | AD79: 7 | AE79: 8 | AF79: 9 | AG79: 10 | AH79: 11 | AI79: 12 | AJ79: 13 | AK79: 14 | AL79: 15 | AM79: 16 | BC79: =Y147 -> 13 | BD79: =BD78 -> -0.06 | BE79: 13 | BF79: =BF78 -> 0.04
Y80: Δ | Z80: Fastener | AA80: Fastener | AB80: Fastener | AC80: Fastener | AD80: Splice | AE80: Splice | AF80: Splice | AG80: Interim | AH80: Σ | AI80: Σ | AJ80: Load in | AK80: Base | AL80: Base | AM80: Diff | BC80: =BC79 -> 13 | BD80: =0 -> 0 | BE80: 13 | BF80: =BF77 -> 0
A81: Fastener | B81: Pitch | C81: Skin | G81: Splice | V81: Ratio of | Y81: Strain | Z81: Slop | AA81: Shear | AB81: Spring | AC81: Load | AD81: Load | AE81: Spring | AF81: Strain | AG81: Loads | AH81: Interim | AI81: Applied | AJ81: Base | AK81: Structure | AL81: Structure | AM81: in Strain | BC81: =BC77 -> 11.5 | BD81: =BD77 -> 0 | BE81: 11.5 | BF81: =BF77 -> 0
V82: Splice | AA82: Strain | AB82: Constant | AE82: Constant | AH82: Loads | AI82: Loads | AJ82: Structure | AK82: Spring | AL82: Strain | BB82: Fastener 7 to Fastener 8
C83: Thick | D83: Width | E83: Area | F83: Stiffness | G83: Thick | H83: Width | I83: Area | J83: Stiffness | V83: to Skin | AK83: Const | BC83: =BC79 -> 13 | BD83: 0 | BE83: =BC83 -> 13 | BF83: 0 | BJ83: Fastener 7 | BK83: =IF(B110=0,0,1) -> 1 | BL83: =BE84 -> 13 | BM83: =MIN(BD84,BD78) -> -0.06
B84: (in) | C84: (in) | D84: (in) | E84: (in²) | F84: (lb/in) | G84: (in) | H84: (in) | I84: (in²) | J84: (lb/in) | V84: Stiffness | W84: 1 | X84: =$B104 -> 0.19 | Y84: =AA84 -> 0.004820861193 | AA84: =AC84/AB84 -> 0.004820861193 | AB84: =$F104 -> 158007.1157 | AC84: 761.7303722 | AD84: =IF(X84=0,#REF!,SUM(AC84:AC84)) -> 761.7303722 | AE84: =$J85 -> 773333.3333 | AF84: =AD84/AE84 -> 0.0009849961709 | AH84: =SUM(AG84:AG84) -> 0 | AI84: =$C$41+AH84 -> 3250 | AJ84: =AI84-AC84 -> 2488.269628 | AK84: =$F85 -> 856000 | AL84: =AJ84/AK84 -> 0.002906857042 | AM84: =AL84-AF84 -> 0.001921860871 | BC84: =BC83 -> 13 | BD84: =-W149 -> -0.06 | BE84: =BC84 -> 13 | BF84: =X149 -> 0.04 | BL84: =BL83 -> 13 | BM84: =MAX(BF84,BF78)*BK83 -> 0.04
A85: 1-2 | B85: 1.5 | C85: =AVERAGE(C104:C105) -> 0.06 | D85: 2 | E85: =(D85)*C85 -> 0.12 | F85: =$C$50*E85/B85 -> 856000 | G85: =AVERAGE(D104:D105) -> 0.02 | H85: 2 | I85: =(H85)*G85 -> 0.04 | J85: =$C$51*I85/B85 -> 773333.3333 | V85: =J85/F85 -> 0.9034267913 | W85: 2 | X85: =$B105 -> 0.19 | Y85: =Y84-AM84 -> 0.002899000322 | AA85: =Y85 -> 0.002899000322 | AB85: =$F105 -> 158007.1157 | AC85: =AA85*AB85 -> 458.0626792 | AD85: =IF(X85=0,AD84,SUM(AC84:AC85)) -> 1219.793051 | AE85: =$J86 -> 966666.6667 | AF85: 0.001261854881 | AH85: =SUM(AG84:AG85) -> 0 | AI85: =$C$41+AH85 -> 3250 | AJ85: =AI85-AD85 -> 2030.206949 | AK85: =$F86 -> 856000 | AL85: 0.002371737089 | AM85: 0.001109882209 | BC85: =Y149 -> 14.5 | BD85: =BD84 -> -0.06 | BE85: 14.5 | BF85: =BF84 -> 0.04
A86: 2-3 | B86: 1.5 | C86: =AVERAGE(C105:C106) -> 0.06 | D86: 2 | E86: =(D86)*C86 -> 0.12 | F86: =$C$50*E86/B86 -> 856000 | G86: =AVERAGE(D105:D106) -> 0.025 | H86: 2 | I86: =(H86)*G86 -> 0.05 | J86: =$C$51*I86/B86 -> 966666.6667 | V86: 1.129283489 | W86: 3 | X86: =$B106 -> 0.19 | Y86: 0.001789118114 | AA86: 0.001789118114 | AB86: =$F106 -> 189413.4735 | AC86: 338.8830764 | AD86: =IF(X86=0,AD85,SUM(AC84:AC86)) -> 1558.676128 | AE86: =$J87 -> 1160000 | AF86: 0.001343686317 | AH86: =SUM(AG84:AG86) -> 0 | AI86: =$C$41+AH86 -> 3250 | AJ86: 1691.323872 | AK86: =$F87 -> 856000 | AL86: 0.001975845645 | AM86: 0.000632159328 | BC86: =BC85 -> 14.5 | BD86: =0 -> 0 | BE86: 14.5 | BF86: =BF83 -> 0
A87: 3-4 | B87: 1.5 | C87: =AVERAGE(C106:C107) -> 0.06 | D87: 2 | E87: 0.12 | F87: =$C$50*E87/B87 -> 856000 | G87: =AVERAGE(D106:D107) -> 0.03 | H87: 2 | I87: 0.06 | J87: =$C$51*I87/B87 -> 1160000 | V87: 1.355140187 | W87: 4 | X87: =$B107 -> 0.19 | Y87: 0.001156958786 | AA87: 0.001156958786 | AB87: =$F107 -> 189413.4735 | AC87: 219.1435823 | AD87: =IF(X87=0,AD86,SUM(AC84:AC87)) -> 1777.81971 | AE87: =$J88 -> 1353333.333 | AF87: 0.001313659884 | AH87: =SUM(AG84:AG87) -> 0 | AI87: =$C$41+AH87 -> 3250 | AJ87: 1472.18029 | AK87: =$F88 -> 856000 | AL87: 0.001719836787 | AM87: 0.0004061769029 | BC87: =BC83 -> 13 | BD87: =BD83 -> 0 | BE87: 13 | BF87: =BF83 -> 0
A88: 4-5 | B88: 1.5 | C88: =AVERAGE(C107:C108) -> 0.06 | D88: 2 | E88: 0.12 | F88: =$C$50*E88/B88 -> 856000 | G88: =AVERAGE(D107:D108) -> 0.035 | H88: 2 | I88: 0.07 | J88: =$C$51*I88/B88 -> 1353333.333 | V88: 1.580996885 | W88: 5 | X88: =$B108 -> 0.19 | Y88: 0.0007507818827 | AA88: 0.0007507818827 | AB88: =$F108 -> 208324.0989 | AC88: 156.4059592 | AD88: =IF(X88=0,AD87,SUM(AC84:AC88)) -> 1934.225669 | AE88: =$J89 -> 1546666.667 | AF88: 0.001250576941 | AH88: =SUM(AG84:AG88) -> 0 | AI88: =$C$41+AH88 -> 3250 | AJ88: 1315.774331 | AK88: =$F89 -> 856000 | AL88: 0.001537119545 | AM88: 0.0002865426039 | BB88: Fastener 8 to Fastener 9
A89: 5-6 | B89: 1.5 | C89: =AVERAGE(C108:C109) -> 0.06 | D89: 2 | E89: 0.12 | F89: =$C$50*E89/B89 -> 856000 | G89: =AVERAGE(D108:D109) -> 0.04 | H89: 2 | I89: 0.08 | J89: =$C$51*I89/B89 -> 1546666.667 | V89: 1.806853583 | W89: 6 | X89: =$B109 -> 0.19 | Y89: 0.0004642392788 | AA89: 0.0004642392788 | AB89: =$F109 -> 208324.0989 | AC89: 96.71222941 | AD89: =IF(X89=0,AD88,SUM(AC84:AC89)) -> 2030.937899 | AE89: =$J90 -> 1546666.667 | AF89: 0.0013131064 | AH89: =SUM(AG84:AG89) -> 0 | AI89: =$C$41+AH89 -> 3250 | AJ89: 1219.062101 | AK89: =$F90 -> 856000 | AL89: 0.001424137969 | AM89: 0.0001110315688 | BC89: =BC85 -> 14.5 | BD89: 0 | BE89: =BC89 -> 14.5 | BF89: 0 | BJ89: Fastener 8 | BK89: =IF(B111=0,0,1) -> 1 | BL89: =BE90 -> 14.5 | BM89: =MIN(BD90,BD84) -> -0.06
A90: 6-7 | B90: 1.5 | C90: =AVERAGE(C109:C110) -> 0.06 | D90: 2 | E90: 0.12 | F90: =$C$50*E90/B90 -> 856000 | G90: =AVERAGE(D109:D110) -> 0.04 | H90: 2 | I90: 0.08 | J90: =$C$51*I90/B90 -> 1546666.667 | V90: 1.806853583 | W90: 7 | X90: =$B110 -> 0.19 | Y90: 0.00035320771 | AA90: 0.00035320771 | AB90: =$F110 -> 208324.0989 | AC90: 73.58167789 | AD90: =IF(X90=0,AD89,SUM(AC84:AC90)) -> 2104.519577 | AE90: =$J91 -> 1546666.667 | AF90: 0.001360680761 | AH90: =SUM(AG84:AG90) -> 0 | AI90: =$C$41+AH90 -> 3250 | AJ90: 1145.480423 | AK90: =$F91 -> 856000 | AL90: 0.001338178065 | AM90: -2.250269598e-05 | BC90: =BC89 -> 14.5 | BD90: =-W151 -> -0.055 | BE90: =BC90 -> 14.5 | BF90: =X151 -> 0.04 | BL90: =BL89 -> 14.5 | BM90: =MAX(BF90,BF84)*BK89 -> 0.04
A91: 7-8 | B91: 1.5 | C91: =AVERAGE(C110:C111) -> 0.06 | D91: 2 | E91: 0.12 | F91: =$C$50*E91/B91 -> 856000 | G91: =AVERAGE(D110:D111) -> 0.04 | H91: 2 | I91: 0.08 | J91: =$C$51*I91/B91 -> 1546666.667 | V91: 1.806853583 | W91: 8 | X91: =$B111 -> 0.19 | Y91: 0.000375710406 | AA91: 0.000375710406 | AB91: =$F111 -> 208324.0989 | AC91: 78.26953176 | AD91: =IF(X91=0,AD90,SUM(AC84:AC91)) -> 2182.789108 | AE91: =$J92 -> 1546666.667 | AF91: 0.001411286061 | AH91: =SUM(AG84:AG91) -> 0 | AI91: =$C$41+AH91 -> 3250 | AJ91: 1067.210892 | AK91: =$F92 -> 784666.6667 | AL91: 0.00136008185 | AM91: -5.120421139e-05 | BC91: =Y151 -> 16 | BD91: =BD90 -> -0.055 | BE91: 16 | BF91: =BF90 -> 0.04
A92: 8-9 | B92: 1.5 | C92: =AVERAGE(C111:C112) -> 0.055 | D92: 2 | E92: 0.11 | F92: =$C$50*E92/B92 -> 784666.6667 | G92: =AVERAGE(D111:D112) -> 0.04 | H92: 2 | I92: 0.08 | J92: =$C$51*I92/B92 -> 1546666.667 | V92: 1.971112999 | W92: 9 | X92: =$B112 -> 0.19 | Y92: 0.0004269146173 | AA92: 0.0004269146173 | AB92: =$F112 -> 195460.0803 | AC92: 83.44476539 | AD92: =IF(X92=0,AD91,SUM(AC84:AC92)) -> 2266.233874 | AE92: =$J93 -> 1546666.667 | AF92: 0.001465237418 | AH92: =SUM(AG84:AG92) -> 0 | AI92: =$C$41+AH92 -> 3250 | AJ92: 983.7661263 | AK92: =$F93 -> 713333.3333 | AL92: 0.001379111392 | AM92: -8.612602639e-05 | BC92: =BC91 -> 16 | BD92: =0 -> 0 | BE92: 16 | BF92: =BF89 -> 0
A93: 9-10 | B93: 1.5 | C93: =AVERAGE(C112:C113) -> 0.05 | D93: 2 | E93: 0.1 | F93: =$C$50*E93/B93 -> 713333.3333 | G93: =AVERAGE(D112:D113) -> 0.04 | H93: 2 | I93: 0.08 | J93: =$C$51*I93/B93 -> 1546666.667 | V93: 2.168224299 | W93: 10 | X93: =$B113 -> 0.19 | Y93: 0.0005130406437 | AA93: 0.0005130406437 | AB93: =$F113 -> 195460.0803 | AC93: 100.2789654 | AD93: =IF(X93=0,AD92,SUM(AC84:AC93)) -> 2366.512839 | AE93: =$J94 -> 1546666.667 | AF93: 0.001530072956 | AH93: 0 | AI93: =$C$41+AH93 -> 3250 | AJ93: 883.4871608 | AK93: =$F94 -> 642000 | AL93: 0.001376148226 | AM93: -0.0001539247307 | BC93: =BC89 -> 14.5 | BD93: =BD89 -> 0 | BE93: 14.5 | BF93: =BF89 -> 0
A94: 10-11 | B94: 1.5 | C94: =AVERAGE(C113:C114) -> 0.045 | D94: 2 | E94: 0.09 | F94: =$C$50*E94/B94 -> 642000 | G94: =AVERAGE(D113:D114) -> 0.04 | H94: 2 | I94: 0.08 | J94: =$C$51*I94/B94 -> 1546666.667 | V94: 2.40913811 | W94: 11 | X94: =$B114 -> 0.19 | Y94: 0.0006669653745 | AA94: 0.0006669653745 | AB94: =$F114 -> 178055.3303 | AC94: 118.7567401 | AD94: =IF(X94=0,AD93,SUM(AC84:AC94)) -> 2485.269579 | AE94: =$J95 -> 1546666.667 | AF94: 0.001606855331 | AH94: 0 | AI94: =$C$41+AH94 -> 3250 | AJ94: 764.7304208 | AK94: =$F95 -> 570666.6667 | AL94: 0.00134006499 | AM94: -0.0002667903417 | BB94: Fastener 9 to Fastener 10
A95: 11-12 | B95: 1.5 | C95: =AVERAGE(C114:C115) -> 0.04 | D95: 2 | E95: 0.08 | F95: =$C$50*E95/B95 -> 570666.6667 | G95: =AVERAGE(D114:D115) -> 0.04 | H95: 2 | I95: 0.08 | J95: =$C$51*I95/B95 -> 1546666.667 | V95: 2.710280374 | W95: 12 | X95: =$B115 -> 0.19 | Y95: 0.0009337557162 | AA95: 0.0009337557162 | AB95: =$F115 -> 178055.3303 | AC95: 166.2601825 | AD95: =IF(X95=0,AD94,SUM(AC84:AC95)) -> 2651.529762 | AE95: =$J96 -> 1546666.667 | AF95: 0.001714351139 | AH95: 0 | AI95: =$C$41+AH95 -> 3250 | AJ95: 598.4702383 | AK95: =$F96 -> 499333.3333 | AL95: 0.001198538528 | AM95: -0.0005158126112 | BC95: =BC91 -> 16 | BD95: 0 | BE95: =BC95 -> 16 | BF95: 0 | BJ95: Fastener 9 | BK95: =IF(B112=0,0,1) -> 1 | BL95: =BE96 -> 16 | BM95: =MIN(BD96,BD90) -> -0.055
A96: 12-13 | B96: 1.5 | C96: =AVERAGE(C115:C116) -> 0.035 | D96: 2 | E96: 0.07 | F96: =$C$50*E96/B96 -> 499333.3333 | G96: =AVERAGE(D115:D116) -> 0.04 | H96: 2 | I96: 0.08 | J96: =$C$51*I96/B96 -> 1546666.667 | V96: 3.097463284 | W96: 13 | X96: =$B116 -> 0.19 | Y96: 0.001449568327 | AA96: 0.001449568327 | AB96: =$F116 -> 154171.7482 | AC96: 223.4824831 | AD96: =IF(X96=0,AD95,SUM(AC84:AC96)) -> 2875.012245 | AE96: =$J97 -> 1546666.667 | AF96: 0.001858844124 | AH96: 0 | AI96: =$C$41+AH96 -> 3250 | AJ96: 374.9877552 | AK96: =$F97 -> 428000 | AL96: 0.0008761396149 | AM96: -0.000982704509 | BC96: =BC95 -> 16 | BD96: =-W153 -> -0.05 | BE96: =BC96 -> 16 | BF96: =X153 -> 0.04 | BL96: =BL95 -> 16 | BM96: =MAX(BF96,BF90)*BK95 -> 0.04
A97: 13-14 | B97: 1.5 | C97: =AVERAGE(C116:C117) -> 0.03 | D97: 2 | E97: 0.06 | F97: =$C$50*E97/B97 -> 428000 | G97: =AVERAGE(D116:D117) -> 0.04 | H97: 2 | I97: 0.08 | J97: =$C$51*I97/B97 -> 1546666.667 | V97: 3.613707165 | W97: 14 | X97: =$B117 -> 0.19 | Y97: 0.002432272836 | AA97: 0.002432272836 | AB97: =$F117 -> 154171.7482 | AC97: 374.9877552 | AD97: =IF(X97=0,AD96,SUM(AC84:AC97)) -> 3250 | AE97: =#REF! ->  | AH97: =SUM(AG84:AG97) -> 0 | AI97: =$C$41+AH97 -> 3250 | AJ97: -2.451088221e-10 | AK97: =#REF! ->  | BC97: =Y153 -> 17.5 | BD97: =BD96 -> -0.05 | BE97: 17.5 | BF97: =BF96 -> 0.04
BC98: =BC97 -> 17.5 | BD98: =0 -> 0 | BE98: 17.5 | BF98: =BF95 -> 0
G99: Results | BC99: =BC95 -> 16 | BD99: =BD95 -> 0 | BE99: 16 | BF99: =BF95 -> 0
A100: Fastener | C100: Skin | D100: Splice | E100: Average | F100: Fastener | G100: Fastener | H100: % of Load | I100: Splice | J100: % of Load | K100: Skin | V100: Ratio of | BB100: Fastener 10 to Fastener 11
B101: Dia | C101: Thick | D101: Thick | E101: Thickness | F101: Stiffness | G101: Load | H101: Transfer | I101: Load | J101: in | K101: Load | V101: Splice | X101: Skin | Y101: Splice | Z101: Bearing | AA101: Bearing | BC101: =BC97 -> 17.5 | BD101: 0 | BE101: =BC101 -> 17.5 | BF101: 0 | BJ101: Fastener 10 | BK101: =IF(B113=0,0,1) -> 1 | BL101: =BE102 -> 17.5 | BM101: =MIN(BD102,BD96) -> -0.05
B102: (in) | C102: (in) | D102: (in) | E102: (in) | F102: (lb/in) | G102: (lb) | H102: in Fast. | I102: (lb) | J102: Splice | K102: (lb) | V102: to Skin | X102: Bearing | Y102: Bearing | Z102: Stress | AA102: Stress | BC102: =BC101 -> 17.5 | BD102: =-W155 -> -0.045 | BE102: =BC102 -> 17.5 | BF102: =X155 -> 0.04 | BL102: =BL101 -> 17.5 | BM102: =MAX(BF102,BF96)*BK101 -> 0.04
V103: Load | X103: Area | Y103: Area | Z103: Skin | AA103: Splice | AE103: =K104/E85 -> 27083.33333 | BC103: =Y155 -> 19 | BD103: =BD102 -> -0.045 | BE103: 19 | BF103: =BF102 -> 0.04
A104: 1 | B104: 0.19 | C104: 0.06 | D104: 0.02 | E104: =(D104+C104)/2 -> 0.04 | F104: =1/((1/(D104*$C$51) + 1/(C104*$C$50) + 1/(2*D104*$C$52) + 1/(2*C104*$C$52))*($C$60)*((D104+C104)/(2*B104))^$C$59) -> 158007.1157 | G104: =ABS(AC84) -> 761.7303722 | H104: =G104/MAX($I$104:$I$118) -> 0.234378576 | I104: 0 | J104: =I104/$C$41 -> 0 | K104: =C41 -> 3250 | X104: =B104*C104 -> 0.0114 | Y104: =D104*B104 -> 0.0038 | Z104: =G104/X104 -> 66818.4537 | AA104: =G104/Y104 -> 200455.3611 | AD104: =I105/I85 -> 19043.2593 | AE104: =K105/E85 -> 20735.58023 | BC104: =BC103 -> 19 | BD104: =0 -> 0 | BE104: 19 | BF104: =BF101 -> 0
A105: 2 | B105: 0.19 | C105: 0.06 | D105: 0.02 | E105: 0.04 | F105: =1/((1/(D105*$C$51) + 1/(C105*$C$50) + 1/(2*D105*$C$52) + 1/(2*C105*$C$52))*($C$60)*((D105+C105)/(2*B105))^$C$59) -> 158007.1157 | G105: =ABS(AC85) -> 458.0626792 | H105: =G105/MAX($I$104:$I$118) -> 0.1409423628 | I105: =AD84 -> 761.7303722 | J105: =I105/$C$41 -> 0.234378576 | K105: =AJ84 -> 2488.269628 | V105: =I105/K105 -> 0.3061285496 | X105: 0.0114 | Y105: 0.0038 | Z105: 40180.93677 | AA105: 120542.8103 | AD105: =I106/I86 -> 24395.86103 | AE105: =K106/E86 -> 16918.39124 | BC105: =BC101 -> 17.5 | BD105: =BD101 -> 0 | BE105: 17.5 | BF105: =BF101 -> 0
A106: 3 | B106: 0.19 | C106: 0.06 | D106: 0.03 | E106: 0.045 | F106: =1/((1/(D106*$C$51) + 1/(C106*$C$50) + 1/(2*D106*$C$52) + 1/(2*C106*$C$52))*($C$60)*((D106+C106)/(2*B106))^$C$59) -> 189413.4735 | G106: =ABS(AC86) -> 338.8830764 | H106: =G106/MAX($I$104:$I$118) -> 0.1042717158 | I106: =AD85 -> 1219.793051 | J106: =I106/$C$41 -> 0.3753209389 | K106: =AJ85 -> 2030.206949 | V106: 0.6008220257 | X106: 0.0114 | Y106: 0.0057 | Z106: 29726.58565 | AA106: 59453.1713 | AD106: =I107/I87 -> 25977.93546 | AE106: =K107/E87 -> 14094.3656 | BB106: Fastener 11 to Fastener 12
A107: 4 | B107: 0.19 | C107: 0.06 | D107: 0.03 | E107: 0.045 | F107: =1/((1/(D107*$C$51) + 1/(C107*$C$50) + 1/(2*D107*$C$52) + 1/(2*C107*$C$52))*($C$60)*((D107+C107)/(2*B107))^$C$59) -> 189413.4735 | G107: =ABS(AC87) -> 219.1435823 | H107: =G107/MAX($I$104:$I$118) -> 0.06742879455 | I107: =AD86 -> 1558.676128 | J107: =I107/$C$41 -> 0.4795926547 | K107: =AJ86 -> 1691.323872 | V107: 0.9215716478 | X107: 0.0114 | Y107: 0.0057 | Z107: 19223.12125 | AA107: 38446.24251 | AD107: =I108/I88 -> 25397.42443 | AE107: =K108/E88 -> 12268.16908 | BC107: =BC103 -> 19 | BD107: 0 | BE107: =BC107 -> 19 | BF107: 0 | BJ107: Fastener 11 | BK107: =IF(B114=0,0,1) -> 1 | BL107: =BE108 -> 19 | BM107: =MIN(BD108,BD102) -> -0.045
A108: 5 | B108: 0.19 | C108: 0.06 | D108: 0.04 | E108: 0.05 | F108: =1/((1/(D108*$C$51) + 1/(C108*$C$50) + 1/(2*D108*$C$52) + 1/(2*C108*$C$52))*($C$60)*((D108+C108)/(2*B108))^$C$59) -> 208324.0989 | G108: =ABS(AC88) -> 156.4059592 | H108: =G108/MAX($I$104:$I$118) -> 0.04812491051 | I108: =AD87 -> 1777.81971 | J108: =I108/$C$41 -> 0.5470214493 | K108: =AJ87 -> 1472.18029 | V108: 1.207610048 | X108: 0.0114 | Y108: 0.0076 | Z108: 13719.82098 | AA108: 20579.73147 | AD108: =I109/I89 -> 24177.82087 | AE108: =K109/E89 -> 10964.78609 | BC108: =BC107 -> 19 | BD108: =-W157 -> -0.04 | BE108: =BC108 -> 19 | BF108: =X157 -> 0.04 | BL108: =BL107 -> 19 | BM108: =MAX(BF108,BF102)*BK107 -> 0.04
A109: 6 | B109: 0.19 | C109: 0.06 | D109: 0.04 | E109: 0.05 | F109: =1/((1/(D109*$C$51) + 1/(C109*$C$50) + 1/(2*D109*$C$52) + 1/(2*C109*$C$52))*($C$60)*((D109+C109)/(2*B109))^$C$59) -> 208324.0989 | G109: =ABS(AC89) -> 96.71222941 | H109: =G109/MAX($I$104:$I$118) -> 0.02975760905 | I109: =AD88 -> 1934.225669 | J109: =I109/$C$41 -> 0.5951463598 | K109: =AJ88 -> 1315.774331 | V109: 1.470028427 | X109: 0.0114 | Y109: 0.0076 | Z109: 8483.528896 | AA109: 12725.29334 | AD109: =I110/I90 -> 25386.72373 | AE109: =K110/E90 -> 10158.85084 | BC109: =Y157 -> 20.5 | BD109: =BD108 -> -0.04 | BE109: 20.5 | BF109: =BF108 -> 0.04
A110: 7 | B110: 0.19 | C110: 0.06 | D110: 0.04 | E110: 0.05 | F110: =1/((1/(D110*$C$51) + 1/(C110*$C$50) + 1/(2*D110*$C$52) + 1/(2*C110*$C$52))*($C$60)*((D110+C110)/(2*B110))^$C$59) -> 208324.0989 | G110: =ABS(AC90) -> 73.58167789 | H110: =G110/MAX($I$104:$I$118) -> 0.02264051628 | I110: =AD89 -> 2030.937899 | J110: =I110/$C$41 -> 0.6249039688 | K110: =AJ89 -> 1219.062101 | V110: 1.665983953 | X110: 0.0114 | Y110: 0.0076 | Z110: 6454.533149 | AA110: 9681.799723 | AD110: =I111/I91 -> 26306.49471 | AE110: =K111/E91 -> 9545.670195 | BC110: =BC109 -> 20.5 | BD110: =0 -> 0 | BE110: 20.5 | BF110: =BF107 -> 0
A111: 8 | B111: 0.19 | C111: 0.06 | D111: 0.04 | E111: 0.05 | F111: =1/((1/(D111*$C$51) + 1/(C111*$C$50) + 1/(2*D111*$C$52) + 1/(2*C111*$C$52))*($C$60)*((D111+C111)/(2*B111))^$C$59) -> 208324.0989 | G111: =ABS(AC91) -> 78.26953176 | H111: =G111/MAX($I$104:$I$118) -> 0.02408293285 | I111: =AD90 -> 2104.519577 | J111: =I111/$C$41 -> 0.6475444851 | K111: =AJ90 -> 1145.480423 | V111: 1.837237489 | X111: 0.0114 | Y111: 0.0076 | Z111: 6865.7484 | AA111: 10298.6226 | AD111: =I112/I92 -> 27284.86385 | AE111: =K112/E92 -> 9701.917197 | BC111: =BC107 -> 19 | BD111: =BD107 -> 0 | BE111: 19 | BF111: =BF107 -> 0
A112: 9 | B112: 0.19 | C112: 0.05 | D112: 0.04 | E112: 0.045 | F112: =1/((1/(D112*$C$51) + 1/(C112*$C$50) + 1/(2*D112*$C$52) + 1/(2*C112*$C$52))*($C$60)*((D112+C112)/(2*B112))^$C$59) -> 195460.0803 | G112: =ABS(AC92) -> 83.44476539 | H112: =G112/MAX($I$104:$I$118) -> 0.02567531243 | I112: =AD91 -> 2182.789108 | J112: =I112/$C$41 -> 0.6716274179 | K112: =AJ91 -> 1067.210892 | V112: 2.045321244 | X112: 0.0095 | Y112: 0.0076 | Z112: 8783.659515 | AA112: 10979.57439 | AD112: =I113/I93 -> 28327.92342 | AE112: =K113/E93 -> 9837.661263 | BB112: Fastener 12 to Fastener 13
A113: 10 | B113: 0.19 | C113: 0.05 | D113: 0.04 | E113: 0.045 | F113: =1/((1/(D113*$C$51) + 1/(C113*$C$50) + 1/(2*D113*$C$52) + 1/(2*C113*$C$52))*($C$60)*((D113+C113)/(2*B113))^$C$59) -> 195460.0803 | G113: =ABS(AC93) -> 100.2789654 | H113: =G113/MAX($I$104:$I$118) -> 0.03085506629 | I113: =AD92 -> 2266.233874 | J113: =I113/$C$41 -> 0.6973027304 | K113: =AJ92 -> 983.7661263 | V113: 2.303630724 | X113: 0.0095 | Y113: 0.0076 | Z113: 10555.68057 | AA113: 13194.60071 | AD113: =I114/I94 -> 29581.41049 | AE113: =K114/E94 -> 9816.524009 | BC113: =BC109 -> 20.5 | BD113: 0 | BE113: =BC113 -> 20.5 | BF113: 0 | BJ113: Fastener 12 | BK113: =IF(B115=0,0,1) -> 1 | BL113: =BE113 -> 20.5 | BM113: =MIN(BD114,BD108) -> -0.04
A114: 11 | B114: 0.19 | C114: 0.04 | D114: 0.04 | E114: 0.04 | F114: =1/((1/(D114*$C$51) + 1/(C114*$C$50) + 1/(2*D114*$C$52) + 1/(2*C114*$C$52))*($C$60)*((D114+C114)/(2*B114))^$C$59) -> 178055.3303 | G114: =ABS(AC94) -> 118.7567401 | H114: =G114/MAX($I$104:$I$118) -> 0.03654053541 | I114: =AD93 -> 2366.512839 | J114: =I114/$C$41 -> 0.7281577967 | K114: =AJ93 -> 883.4871608 | V114: 2.678604675 | X114: 0.0076 | Y114: 0.0076 | Z114: 15625.88685 | AA114: 15625.88685 | AD114: =I115/I95 -> 31065.86974 | AE114: =K115/E95 -> 9559.13026 | BC114: =BC113 -> 20.5 | BD114: =-W159 -> -0.035 | BE114: =BC114 -> 20.5 | BF114: =X159 -> 0.04 | BL114: =BL113 -> 20.5 | BM114: =MAX(BF114,BF108)*BK113 -> 0.04
A115: 12 | B115: 0.19 | C115: 0.04 | D115: 0.04 | E115: 0.04 | F115: =1/((1/(D115*$C$51) + 1/(C115*$C$50) + 1/(2*D115*$C$52) + 1/(2*C115*$C$52))*($C$60)*((D115+C115)/(2*B115))^$C$59) -> 178055.3303 | G115: =ABS(AC95) -> 166.2601825 | H115: =G115/MAX($I$104:$I$118) -> 0.05115697923 | I115: =AD94 -> 2485.269579 | J115: =I115/$C$41 -> 0.7646983321 | K115: =AJ94 -> 764.7304208 | V115: 3.249863627 | X115: 0.0076 | Y115: 0.0076 | Z115: 21876.3398 | AA115: 21876.3398 | AD115: =I116/I96 -> 33144.12202 | AE115: =K116/E96 -> 8549.574832 | BC115: =Y159 -> 22 | BD115: =BD114 -> -0.035 | BE115: 22 | BF115: =BF114 -> 0.04
A116: 13 | B116: 0.19 | C116: 0.03 | D116: 0.04 | E116: 0.035 | F116: =1/((1/(D116*$C$51) + 1/(C116*$C$50) + 1/(2*D116*$C$52) + 1/(2*C116*$C$52))*($C$60)*((D116+C116)/(2*B116))^$C$59) -> 154171.7482 | G116: =ABS(AC96) -> 223.4824831 | H116: =G116/MAX($I$104:$I$118) -> 0.06876384095 | I116: =AD95 -> 2651.529762 | J116: =I116/$C$41 -> 0.8158553113 | K116: =AJ95 -> 598.4702383 | V116: 4.430512317 | X116: 0.0057 | Y116: 0.0076 | Z116: 39207.45318 | AA116: 29405.58988 | AD116: =I117/I97 -> 35937.65306 | AE116: =K117/E97 -> 6249.795919 | BC116: =BC115 -> 22 | BD116: =0 -> 0 | BE116: 22 | BF116: =BF113 -> 0
A117: 14 | B117: 0.19 | C117: 0.03 | D117: 0.04 | E117: 0.035 | F117: =1/((1/(D117*$C$51) + 1/(C117*$C$50) + 1/(2*D117*$C$52) + 1/(2*C117*$C$52))*($C$60)*((D117+C117)/(2*B117))^$C$59) -> 154171.7482 | G117: =ABS(AC97) -> 374.9877552 | H117: =G117/MAX($I$104:$I$118) -> 0.1153808477 | I117: =AD96 -> 2875.012245 | J117: =I117/$C$41 -> 0.8846191523 | K117: =AJ96 -> 374.9877552 | V117: 7.666949668 | X117: 0.0057 | Y117: 0.0076 | Z117: 65787.32547 | AA117: 49340.4941 | AE117: =K118/E97 -> -4.085147035e-09 | BC117: =BC113 -> 20.5 | BD117: =BD113 -> 0 | BE117: 20.5 | BF117: =BF113 -> 0
I118: =AD97 -> 3250 | J118: =I118/$C$41 -> 1 | K118: =AJ97 -> -2.451088221e-10 | BB118: Fastener 13 to Fastener 14
BC119: =BC115 -> 22 | BD119: 0 | BE119: =BC119 -> 22 | BF119: 0 | BJ119: Fastener 13 | BK119: =IF(B116=0,0,1) -> 1 | BL119: =BE119 -> 22 | BM119: =MIN(BD120,BD114) -> -0.035
BC120: =BC119 -> 22 | BD120: =-W161 -> -0.03 | BE120: =BC120 -> 22 | BF120: =X161 -> 0.04 | BL120: =BL119 -> 22 | BM120: =MAX(BF120,BF114)*BK119 -> 0.04
BC121: =Y161 -> 23.5 | BD121: =BD120 -> -0.03 | BE121: 23.5 | BF121: =BF120 -> 0.04
E122: Author: | F122: =$C$1 -> R. Abbott | I122: Document Number: | J122: =$G$2 -> AA-SM-291 | BC122: =BC121 -> 23.5 | BD122: =0 -> 0 | BE122: 23.5 | BF122: =BF119 -> 0
E123: Check: | F123: =$C$2 -> J. Singh | I123: Revision Level : | J123: =$G$3 -> IR | M123: 1 | BC123: =BC119 -> 22 | BD123: =BD119 -> 0 | BE123: 22 | BF123: =BF119 -> 0
E124: Date: | F124: =$C$3 -> 20/10/2013 | I124: Page: | J124: =L124&" of "&$G$1 -> 3 of 3 | L124: =SUM($M$1:M123) -> 3 | BB124: Fastener 14 to End
E125: Title: | F125: =$C$5 -> STANDARD SPREADSHEET METHOD | BC125: =BC121 -> 23.5 | BD125: 0 | BE125: =BC125 -> 23.5 | BF125: 0 | BJ125: Fastener 14 | BK125: =IF(B117=0,0,1) -> 1 | BL125: =BE125 -> 23.5 | BM125: =MIN(BD126,BD120) -> -0.03
BC126: =BC125 -> 23.5 | BD126: =BD120 -> -0.03 | BE126: =BC126 -> 23.5 | BF126: =BF120 -> 0.04 | BL126: =BL125 -> 23.5 | BM126: =MAX(BF126,BF120)*BK125 -> 0.04
B127: =$G$4 -> SPLICE LOAD DISTRIBUTION | BC127: =BC126+BE41 -> 25.5 | BD127: =BD126 -> -0.03 | BE127: =BE126+BE43 -> 27.5 | BF127: =BF126 -> 0.04
B128: Joint Load Distribution: Ref AFFDL-TR-67-184 Analytical Design Methods for Aircraft Structural Joints | BC128: =BC127 -> 25.5 | BD128: =0 -> 0 | BE128: =BE127 -> 27.5 | BF128: =BF125 -> 0
B129: Fastener Stiffness: Ref Huth, On the influence of Rivet Pliability of Multi-Row Rivet Connections on Load Transfer | BC129: =BC125 -> 23.5 | BD129: =BD125 -> 0 | BE129: 23.5 | BF129: =BF125 -> 0
Y134: 0 | AA134: =AA135 -> 3250 | AC134: =AE103 -> 27083.33333
Y135: =Y136 -> 4 | Z135: =I104 -> 0 | AA135: =K104 -> 3250 | AB135: 0 | AC135: =AC134 -> 27083.33333
U136: 1 | V136: =B104 -> 0.19 | W136: =C104 -> 0.06 | X136: =D104 -> 0.02 | Y136: 4 | Z136: =I105 -> 761.7303722 | AA136: =K105 -> 2488.269628 | AB136: =AD104 -> 19043.2593 | AC136: =AE104 -> 20735.58023
W137: =C85 -> 0.06 | X137: =G85 -> 0.02 | Y137: =Y136+B85 -> 5.5 | Z137: =Z136 -> 761.7303722 | AA137: =AA136 -> 2488.269628 | AB137: =AB136 -> 19043.2593 | AC137: =AC136 -> 20735.58023
U138: 2 | V138: =B105 -> 0.19 | W138: =C105 -> 0.06 | X138: =D105 -> 0.02 | Y138: =Y137 -> 5.5 | Z138: =I106 -> 1219.793051 | AA138: =K106 -> 2030.206949 | AB138: =AD105 -> 24395.86103 | AC138: =AE105 -> 16918.39124 | AD138: =Z138 -> 1219.793051 | AE138: 1 | AF138: =Y136 -> 4 | AG138: =AFF85 -> 0 | AH138: =G104 -> 761.7303722 | AI138: =Z104 -> 66818.4537 | AJ138: =AA104 -> 200455.3611
W139: =C86 -> 0.06 | X139: =G86 -> 0.025 | Y139: =Y138+B86 -> 7 | Z139: =Z138 -> 1219.793051 | AA139: =AA138 -> 2030.206949 | AB139: =AB138 -> 24395.86103 | AC139: =AC138 -> 16918.39124
U140: 3 | V140: =B106 -> 0.19 | W140: =C106 -> 0.06 | X140: =D106 -> 0.03 | Y140: =Y139 -> 7 | Z140: =I107 -> 1558.676128 | AA140: =K107 -> 1691.323872 | AB140: =AD106 -> 25977.93546 | AC140: =AE106 -> 14094.3656 | AD140: =Z140 -> 1558.676128 | AE140: 2 | AF140: =Y138 -> 5.5 | AG140: =AFF86 -> 0 | AH140: =G105 -> 458.0626792 | AI140: =Z105 -> 40180.93677 | AJ140: =AA105 -> 120542.8103
W141: =C87 -> 0.06 | X141: =G87 -> 0.03 | Y141: =Y140+B87 -> 8.5 | Z141: =Z140 -> 1558.676128 | AA141: =AA140 -> 1691.323872 | AB141: =AB140 -> 25977.93546 | AC141: =AC140 -> 14094.3656
U142: 4 | V142: =B107 -> 0.19 | W142: =C107 -> 0.06 | X142: =D107 -> 0.03 | Y142: =Y141 -> 8.5 | Z142: =I108 -> 1777.81971 | AA142: =K108 -> 1472.18029 | AB142: =AD107 -> 25397.42443 | AC142: =AE107 -> 12268.16908 | AD142: =Z142 -> 1777.81971 | AE142: 3 | AF142: =Y140 -> 7 | AG142: =AFF87 -> 0 | AH142: =G106 -> 338.8830764 | AI142: =Z106 -> 29726.58565 | AJ142: =AA106 -> 59453.1713
W143: =C88 -> 0.06 | X143: =G88 -> 0.035 | Y143: =IF(V144=0,Y142,Y142+B88) -> 10 | Z143: =Z142 -> 1777.81971 | AA143: =AA142 -> 1472.18029 | AB143: =AB142 -> 25397.42443 | AC143: =AC142 -> 12268.16908
U144: 5 | V144: =B108 -> 0.19 | W144: =C108 -> 0.06 | X144: =D108 -> 0.04 | Y144: =Y143 -> 10 | Z144: =I109 -> 1934.225669 | AA144: =K109 -> 1315.774331 | AB144: =AD108 -> 24177.82087 | AC144: =AE108 -> 10964.78609 | AD144: =Z144 -> 1934.225669 | AE144: 4 | AF144: =Y142 -> 8.5 | AG144: =AFF88 -> 0 | AH144: =G107 -> 219.1435823 | AI144: =Z107 -> 19223.12125 | AJ144: =AA107 -> 38446.24251 | AL144: 0 | AM144: =AM145+AG138 -> 0
W145: =C89 -> 0.06 | X145: =G89 -> 0.04 | Y145: =IF(V146=0,Y144,Y144+B89) -> 11.5 | Z145: =Z144 -> 1934.225669 | AA145: =AA144 -> 1315.774331 | AB145: =AB144 -> 24177.82087 | AC145: =AC144 -> 10964.78609 | AL145: =AFG85 -> 0 | AM145: =AFM85 -> 0
U146: 6 | V146: =B109 -> 0.19 | W146: =C109 -> 0.06 | X146: =D109 -> 0.04 | Y146: =Y145 -> 11.5 | Z146: =I110 -> 2030.937899 | AA146: =K110 -> 1219.062101 | AB146: =AD109 -> 25386.72373 | AC146: =AE109 -> 10158.85084 | AD146: =Z146 -> 2030.937899 | AE146: 5 | AF146: =Y144 -> 10 | AG146: =AFF89 -> 0 | AH146: =G108 -> 156.4059592 | AI146: =Z108 -> 13719.82098 | AJ146: =AA108 -> 20579.73147 | AL146: 0 | AM146: 0
W147: =C90 -> 0.06 | X147: =G90 -> 0.04 | Y147: =IF(V148=0,Y146,Y146+B90) -> 13 | Z147: =Z146 -> 2030.937899 | AA147: =AA146 -> 1219.062101 | AB147: =AB146 -> 25386.72373 | AC147: =AC146 -> 10158.85084 | AL147: 0 | AM147: 0
U148: 7 | V148: =B110 -> 0.19 | W148: =C110 -> 0.06 | X148: =D110 -> 0.04 | Y148: =Y147 -> 13 | Z148: =I111 -> 2104.519577 | AA148: =K111 -> 1145.480423 | AB148: =AD110 -> 26306.49471 | AC148: =AE110 -> 9545.670195 | AD148: =Z148 -> 2104.519577 | AE148: 6 | AF148: =Y146 -> 11.5 | AG148: =AFF90 -> 0 | AH148: =G109 -> 96.71222941 | AI148: =Z109 -> 8483.528896 | AJ148: =AA109 -> 12725.29334 | AL148: 0 | AM148: 0
W149: =C91 -> 0.06 | X149: =G91 -> 0.04 | Y149: =IF(V150=0,Y148,Y148+B91) -> 14.5 | Z149: =Z148 -> 2104.519577 | AA149: =AA148 -> 1145.480423 | AB149: =AB148 -> 26306.49471 | AC149: =AC148 -> 9545.670195 | AL149: 0 | AM149: 0
U150: 8 | V150: =B111 -> 0.19 | W150: =C111 -> 0.06 | X150: =D111 -> 0.04 | Y150: =Y149 -> 14.5 | Z150: =I112 -> 2182.789108 | AA150: =K112 -> 1067.210892 | AB150: =AD111 -> 27284.86385 | AC150: =AE111 -> 9701.917197 | AD150: =Z150 -> 2182.789108 | AE150: 7 | AF150: =Y148 -> 13 | AG150: =AFF91 -> 0 | AH150: =G110 -> 73.58167789 | AI150: =Z110 -> 6454.533149 | AJ150: =AA110 -> 9681.799723 | AL150: 0 | AM150: 0
W151: =C92 -> 0.055 | X151: =G92 -> 0.04 | Y151: =IF(V152=0,Y150,Y150+B92) -> 16 | Z151: =Z150 -> 2182.789108 | AA151: =AA150 -> 1067.210892 | AB151: =AB150 -> 27284.86385 | AC151: =AC150 -> 9701.917197 | AL151: 0 | AM151: 0
U152: 9 | V152: =B112 -> 0.19 | W152: =C112 -> 0.05 | X152: =D112 -> 0.04 | Y152: =Y151 -> 16 | Z152: =I113 -> 2266.233874 | AA152: =K113 -> 983.7661263 | AB152: =AD112 -> 28327.92342 | AC152: =AE112 -> 9837.661263 | AD152: =Z152 -> 2266.233874 | AE152: 8 | AF152: =Y150 -> 14.5 | AG152: =AFF92 -> 0 | AH152: =G111 -> 78.26953176 | AI152: =Z111 -> 6865.7484 | AJ152: =AA111 -> 10298.6226 | AL152: 0 | AM152: 0
W153: =C93 -> 0.05 | X153: =G93 -> 0.04 | Y153: =IF(V154=0,Y152,Y152+B93) -> 17.5 | Z153: =Z152 -> 2266.233874 | AA153: =AA152 -> 983.7661263 | AB153: =AB152 -> 28327.92342 | AC153: =AC152 -> 9837.661263 | AL153: =AFG97 -> 0 | AM153: =AFM97 -> 0
U154: 10 | V154: =B113 -> 0.19 | W154: =C113 -> 0.05 | X154: =D113 -> 0.04 | Y154: =Y153 -> 17.5 | Z154: =I114 -> 2366.512839 | AA154: =K114 -> 883.4871608 | AB154: =AD113 -> 29581.41049 | AC154: =AE113 -> 9816.524009 | AD154: =Z154 -> 2366.512839 | AE154: 9 | AF154: =Y152 -> 16 | AG154: =AFF97 -> 0 | AH154: =G112 -> 83.44476539 | AI154: =Z112 -> 8783.659515 | AJ154: =AA112 -> 10979.57439 | AL154: =AFG98 -> 0 | AM154: =AFM98 -> 0
W155: =C94 -> 0.045 | X155: =G94 -> 0.04 | Y155: =IF(V156=0,Y154,Y154+B94) -> 19 | Z155: =Z154 -> 2366.512839 | AA155: =AA154 -> 883.4871608 | AB155: =AB154 -> 29581.41049 | AC155: =AC154 -> 9816.524009
U156: 11 | V156: =B114 -> 0.19 | W156: =C114 -> 0.04 | X156: =D114 -> 0.04 | Y156: =Y155 -> 19 | Z156: =I115 -> 2485.269579 | AA156: =K115 -> 764.7304208 | AB156: =AD114 -> 31065.86974 | AC156: =AE114 -> 9559.13026 | AD156: =Z156 -> 2485.269579 | AE156: 10 | AF156: =Y154 -> 17.5 | AG156: =AFF98 -> 0 | AH156: =G113 -> 100.2789654 | AI156: =Z113 -> 10555.68057 | AJ156: =AA113 -> 13194.60071
W157: =C95 -> 0.04 | X157: =G95 -> 0.04 | Y157: =IF(V158=0,Y156,Y156+B95) -> 20.5 | Z157: =Z156 -> 2485.269579 | AA157: =AA156 -> 764.7304208 | AB157: =AB156 -> 31065.86974 | AC157: =AC156 -> 9559.13026
U158: 12 | V158: =B115 -> 0.19 | W158: =C115 -> 0.04 | X158: =D115 -> 0.04 | Y158: =Y157 -> 20.5 | Z158: =I116 -> 2651.529762 | AA158: =K116 -> 598.4702383 | AB158: =AD115 -> 33144.12202 | AC158: =AE115 -> 8549.574832 | AE158: 11 | AF158: =Y156 -> 19 | AH158: =G114 -> 118.7567401 | AI158: =Z114 -> 15625.88685 | AJ158: =AA114 -> 15625.88685
W159: =C96 -> 0.035 | X159: =G96 -> 0.04 | Y159: =IF(V160=0,Y158,Y158+B96) -> 22 | Z159: =Z158 -> 2651.529762 | AA159: =AA158 -> 598.4702383 | AB159: =AB158 -> 33144.12202 | AC159: =AC158 -> 8549.574832
U160: 13 | V160: =B116 -> 0.19 | W160: =C116 -> 0.03 | X160: =D116 -> 0.04 | Y160: =Y159 -> 22 | Z160: =I117 -> 2875.012245 | AA160: =K117 -> 374.9877552 | AB160: =AD116 -> 35937.65306 | AC160: =AE116 -> 6249.795919 | AE160: 12 | AF160: =Y158 -> 20.5 | AH160: =G115 -> 166.2601825 | AI160: =Z115 -> 21876.3398 | AJ160: =AA115 -> 21876.3398
W161: =C97 -> 0.03 | X161: =G97 -> 0.04 | Y161: =IF(V162=0,Y160,Y160+B97) -> 23.5 | Z161: =Z160 -> 2875.012245 | AA161: =AA160 -> 374.9877552 | AB161: =AB160 -> 35937.65306 | AC161: =AC160 -> 6249.795919
U162: 14 | V162: =B117 -> 0.19 | W162: =C117 -> 0.03 | X162: =D117 -> 0.04 | Y162: =Y161 -> 23.5 | Z162: =I118 -> 3250 | AA162: =K118 -> -2.451088221e-10 | AB162: =AB161 -> 35937.65306 | AC162: =AE117 -> -4.085147035e-09 | AE162: 13 | AF162: =Y160 -> 22 | AH162: =G116 -> 223.4824831 | AI162: =Z116 -> 39207.45318 | AJ162: =AA116 -> 29405.58988
Y163: =Y162+Y135 -> 27.5 | Z163: =Z162 -> 3250 | AA163: =K118 -> -2.451088221e-10 | AB163: =AB162 -> 35937.65306 | AC163: =AC162 -> -4.085147035e-09
AE164: 14 | AF164: =Y162 -> 23.5 | AH164: =G117 -> 374.9877552 | AI164: =Z117 -> 65787.32547 | AJ164: =AA117 -> 49340.4941
